Cogmind - Beta 12 @@@ ROGUE MODE // 2024.01.02 @ 21:56:09 Player: ZEUSDEX Result: Destroyed by H-66 Slayer with Heavy Assault Rifle Performance ------------- Evolutions (5) 2500 Regions Visited (15) 3000 Robots Destroyed (121) 605 Value Destroyed (5477) 5477 Prototype IDs (6) 120 Alien Tech Used (0) 0 Bonus (1426) 1426 TOTAL SCORE: 13128 Bonus ------- High Alert Combat Kills 274 Follower Combat Kills 621 Entered Garrisons 200 Entered DSFs 500 Friendly Fire -169 Cogmind --------- Core Integrity 0/1000 Matter 300/300 Energy 328/340 System Corruption 4% Temperature Warm (116) Movement Walking (190) Ox1 Location -5/Hub_04(d) Parts ------- > --- POWER (1) -------- Particle Reactor > --- PROPULSION (4) --- Improved Carbon-fiber Leg Centrium Leg Centrium Leg > --- UTILITY (10) ----- Advanced Heat Sink Advanced Heat Sink Huge Storage Unit Target Analyzer Improved Target Analyzer Improved Weapon Cycler > --- WEAPON (2) ------- Wave Gun > --- INVENTORY (25) --- Neutrino Core Neutrino Core Micro Fission Core Quantum Reactor Centrium Heavy Treads Carbon-fiber Leg Flexi-carbon Leg Flexi-carbon Leg Flexi-carbon Leg Myomer Leg Myomer Leg Improved Signal Interpreter Improved Kinecellerator Improved Dynamic Insulation System Long-range Tractor Beam Improved Recalibrator Wave Gun Railgun Peak State ------------ > --- POWER ------------ Quantum Reactor > --- PROPULSION ------- Biometal Heavy Treads Advanced Heavy Siege Treads > --- UTILITY ---------- Advanced Heat Sink Advanced Heat Sink Advanced Coolant Injector Huge Storage Unit Energy Well Targeting Computer Improved Targeting Computer Target Analyzer Improved Weapon Cycler Layered Medium Armor Plating > --- WEAPON ----------- Enhanced Quantum Rifle Enhanced Nova Cannon > --- INVENTORY -------- Quantum Reactor Quantum Reactor Advanced Heavy Siege Treads Carbon-fiber Leg Carbon-fiber Leg Improved Carbon-fiber Leg Flexi-carbon Leg Armored Leg Armored Leg Centrium Leg Centrium Leg Improved Cooling System Compact Battery Improved Signal Interpreter Improved Kinecellerator Relay Coupler [Swarmer] Improved Dynamic Insulation System Long-range Tractor Beam Improved Recalibrator Heavy Beamcaster Nova Cannon Enhanced Nova Cannon Enhanced Nova Cannon [Rating: 117] Favorites ----------- Power Quantum Reactor Engine Light Ion Engine Power Core Cooled Fission Core Reactor Quantum Reactor Propulsion Centrium Leg Treads Advanced Heavy Siege Treads Leg Centrium Leg Wheel Wheel Hover Unit Improved Hover Unit Utility Improved Targeting Computer Device Improved Weapon Cycler Storage Large Storage Unit Processor Improved Targeting Computer Protection Layered Medium Armor Plating Weapon Enhanced Autogun Energy Gun Heavy Beamcaster Energy Cannon Enhanced Nova Cannon Ballistic Gun Enhanced Autogun Launcher Rocket Launcher Build | -11 -10 -9 -8 -7 -6 -6 -6 -6 -5 -5 -5 -5 -5 -5 -5 ------- Run | Jun Mat Mat Mat Fac Fac Was Fac DSF Fac Gar Fac Ext Cet Arc Hub Slots Evolved 10 | . . 2 2 2 2 . . . 2 . . . . . . Power . | . . . . . . . . . . . . . . . . Propulsion 2 | . . . 2 . . . . . . . . . . . . Utility 8 | . . 2 . 2 2 . . . 2 . . . . . . Weapon . | . . . . . . . . . . . . . . . . Parts Attached 166 | 8 8 6 8 14 6 4 . 13 18 33 2 21 22 2 1 Power 22 | 1 1 1 1 1 3 1 . 1 2 5 . 2 2 1 . Engine 7 | 1 1 . 1 1 . . . 1 . 2 . . . . . Core 7 | . . 1 . . 3 . . . 2 . . . 1 . . Reactor 8 | . . . . . . 1 . . . 3 . 2 1 1 . Propulsion 51 | 2 3 1 4 5 . . . 10 1 8 . 9 7 . 1 Treads 4 | . . . . . . . . . . 2 . 1 1 . . Leg 36 | . . . . 4 . . . 10 1 6 . 8 6 . 1 Wheel 2 | 2 . . . . . . . . . . . . . . . Hover 9 | . 3 1 4 1 . . . . . . . . . . . Flight . | . . . . . . . . . . . . . . . . Utility 61 | 2 2 2 1 7 3 1 . . 13 13 1 8 8 . . Device 25 | 1 . 2 . 1 2 . . . 4 8 1 2 4 . . Storage 15 | 1 1 . 1 4 . . . . 6 1 . 1 . . . Processor 10 | . 1 . . 1 1 . . . 2 . . 4 1 . . Hackware . | . . . . . . . . . . . . . . . . Protection 11 | . . . . 1 . 1 . . 1 4 . 1 3 . . Artifact . | . . . . . . . . . . . . . . . . Weapon 32 | 3 2 2 2 1 . 2 . 2 2 7 1 2 5 1 . Energy Gun 12 | 2 . . . . . . . 1 2 1 . 1 4 1 . Energy Cannon 5 | . . . . . . . . . . 2 1 1 1 . . Ballistic Gun 12 | 1 1 2 1 1 . 2 . 1 . 3 . . . . . Ballistic Cannon . | . . . . . . . . . . . . . . . . Launcher 3 | . 1 . 1 . . . . . . 1 . . . . . Special Weapon . | . . . . . . . . . . . . . . . . Impact Weapon . | . . . . . . . . . . . . . . . . Slashing Weapon . | . . . . . . . . . . . . . . . . Piercing Weapon . | . . . . . . . . . . . . . . . . Special Melee Weapon . | . . . . . . . . . . . . . . . . Unidentified Prototypes 6 | . . 1 . . 2 . . . . . . . 3 . . Parts Lost 74 | . 3 1 4 7 1 . . 9 . 14 2 13 13 1 6 Power 9 | . 1 . 1 1 1 . . 1 . 1 . 2 1 . . Propulsion 19 | . 1 1 2 4 . . . 3 . 2 . 3 1 . 2 Utility 32 | . 1 . . 1 . . . 4 . 9 1 6 6 1 3 Weapon 14 | . . . 1 1 . . . 1 . 2 1 2 5 . 1 Highest Loss Streak 8 | . 3 1 4 7 1 . . 5 . 6 1 8 7 1 6 To Critical Strikes 1 | . . . . . . . . . . . . 1 . . . Average Slot Usage (%) 94 | . 88 100 98 94 100 100 100 83 99 89 87 97 96 95 93 Engine 1 | . 8 6 2 6 . . . . 1 1 . . . . . Core 1 | . . 4 5 . 5 . . . 3 1 . . 2 1 . Reactor 2 | . . . . . . 5 6 5 . 2 5 5 2 3 5 Treads 1 | . . . . . . . . . . 3 11 1 . . . Leg 16 | . . . . 19 26 26 26 25 23 14 . 19 22 23 22 Hover 5 | . 25 22 35 8 . . . . . . . . . . . Device 17 | . 7 22 18 17 20 20 20 15 16 18 21 18 16 19 17 Storage 8 | . 14 11 9 6 6 6 6 6 11 10 11 5 5 5 5 Processor 19 | . 3 11 9 15 20 20 20 18 23 18 17 28 24 17 17 Protection 4 | . . . . 4 6 6 6 3 5 4 6 2 5 11 10 Energy Gun 4 | . 8 . . . . . . 1 11 5 5 5 6 10 10 Energy Cannon 1 | . . . . . . . . . . 2 5 5 4 . . Ballistic Gun 4 | . 14 11 11 9 13 13 13 5 . 1 . . . . . Launcher 1 | . 5 11 6 2 . . . . . . . . . . . Naked Turns . | . . . . . . . . . . . . . . . . Heaviest Build 143 | 11 28 35 37 100 52 59 59 59 74 143 143 137 137 127 126 Greatest Support 155 | 26 26 14 28 55 55 55 55 84 68 155 155 155 105 95 95 Greatest Overweight (x) 3 | 1 3 2 2 1 . 1 1 1 1 1 . 1 2 1 1 Average Overweight (x) . | . . 2 1 . . . 1 . . . . . 1 1 1 Largest Inventory Capacity 25 | 8 15 15 15 25 15 15 15 15 25 25 25 25 25 25 25 Average Capacity 18 | 5 12 15 15 15 15 15 15 15 15 18 25 25 25 25 25 Most Carried 25 | 2 14 15 14 13 15 15 15 15 15 25 25 25 25 20 20 Average Carried 16 | 1 6 13 12 10 13 14 15 14 10 16 24 24 22 19 19 Final Capacity 25 | 8 15 15 15 15 15 15 15 15 15 25 25 25 25 25 25 Final Carried 25 | 2 14 15 12 13 15 15 15 13 15 25 25 25 18 20 19 Class Distribution -------------------- 58% | Scavenger-Mutant 33% | Mutant 8% | Commander-Mutant Dominant Class ---------------- Mutant | -10/Materials Mutant | -9/Materials Mutant | -8/Materials Scavenger-Mutant | -7/Factory Scavenger-Mutant | -6/Factory Scavenger-Mutant | -6/Waste Scavenger-Mutant | -6/Factory Scavenger-Mutant | -6/DSF Mutant | -5/Factory Scavenger-Mutant | -5/Garrison Scavenger-Mutant | -5/Factory Scavenger-Mutant | -5/Extension Scavenger-Mutant | -5/Cetus Scavenger-Mutant | -5/Archives Scavenger-Mutant | -5/Hub_04(d) Resources | -11 -10 -9 -8 -7 -6 -6 -6 -6 -5 -5 -5 -5 -5 -5 -5 ----------- Run | Jun Mat Mat Mat Fac Fac Was Fac DSF Fac Gar Fac Ext Cet Arc Hub Matter Collected 2656 | 309 118 85 462 170 84 188 . 66 38 728 15 170 195 22 6 Remotely . | . . . . . . . . . . . . . . . . Salvage Created 6258 | 218 108 210 341 492 84 . . 219 155 1220 474 1091 1280 366 . Parts 282 | 14 12 13 19 16 5 . . 21 12 46 13 48 56 7 . Haulers Intercepted 1 | . . . . 1 . . . . . . . . . . . Recyclers Shooed 6 | . . 1 . . 2 . . . . . 1 2 . . . Parts Field Recycled . | . . . . . . . . . . . . . . . . Retrieved Matter . | . . . . . . . . . . . . . . . . Parts Self-Destructed . | . . . . . . . . . . . . . . . . Prevented . | . . . . . . . . . . . . . . . . Kills | -11 -10 -9 -8 -7 -6 -6 -6 -6 -5 -5 -5 -5 -5 -5 -5 ------- Run | Jun Mat Mat Mat Fac Fac Was Fac DSF Fac Gar Fac Ext Cet Arc Hub Combat Hostiles Destroyed 93 | . 5 3 5 8 1 . . 8 2 18 7 9 23 4 . Guns 56 | . 4 2 5 4 1 . . 8 2 12 3 3 10 2 . Cannons 19 | . . . . . . . . . . 3 3 4 9 . . AOE 9 | . 1 1 . 4 . . . . . 3 . . . . . Classes Destroyed 17 | 3 3 2 1 2 1 . . 2 1 1 . . 1 . . Worker 3 | 2 . . . . . . . . 1 . . . . . . Builder 2 | . . 1 . . . . . . . . . 1 . . . Tunneler 5 | 5 . . . . . . . . . . . . . . . Hauler 1 | . . . . 1 . . . . . . . . . . . Recycler 8 | 1 . 1 2 1 . . . . . . 1 2 . . . Operator 1 | . . . 1 . . . . . . . . . . . . Watcher 7 | . 1 . . . 1 . . . 1 1 1 2 . . . Swarmer 22 | . 3 . . . . . . 3 1 6 4 . 5 . . Cutter 4 | . . . . . . . . 4 . . . . . . . Grunt 28 | . 2 2 2 6 . . . . . 5 1 1 9 . . Duelist 2 | . . . . 1 . . . . . . . . 1 . . Sentry 19 | . . 1 3 1 . . . . . 5 1 4 . 4 . Specialist 1 | . . . . . . . . 1 . . . . . . . Hunter 8 | . . . . . . . . . 1 . 1 2 4 . . Programmer 3 | . . . . . 1 . . . . . . . 2 . . Behemoth 4 | . . . . . . . . . . 2 . 2 . . . Cetus Guard 2 | . . . . . . . . . . . . . 2 . . Savage 1 | . . . . . . . . . . . . . 1 . . Best Kill Streak 10 | 6 2 3 4 7 1 . . 5 3 4 5 5 10 3 . Combat Bots Only 10 | . 2 2 3 7 1 . . 5 2 4 4 5 10 3 . Max Kills in Single Turn 3 | 1 1 2 2 2 1 . . 1 1 3 2 2 1 1 . Gunslinging . | . . . . . . . . . . . . . . . . Exploded 3 | . 1 1 . 2 . . . . . 3 . . . . . Melee . | . . . . . . . . . . . . . . . . Uniques/NPCs Destroyed . | . . . . . . . . . . . . . . . . Combat | -11 -10 -9 -8 -7 -6 -6 -6 -6 -5 -5 -5 -5 -5 -5 -5 -------- Run | Jun Mat Mat Mat Fac Fac Was Fac DSF Fac Gar Fac Ext Cet Arc Hub Damage Taken 13618 | . 360 196 506 466 10 . . 1757 141 3235 495 2693 2576 381 802 Core 1636 | . 105 81 43 115 . . . 283 27 326 25 279 196 30 126 Absorbed by Shields 345 | . . . . . 4 . . 233 . . . 108 . . . Regen/Repaired (Parts) 155 | . . . . 155 . . . . . . . . . . . Core Remaining (%) 79 | 100 58 79 92 83 . . . 66 . . . . . . . Volleys Fired 456 | 29 30 28 44 18 6 . . 20 12 110 19 40 69 22 9 Largest 2 | 2 2 2 2 2 2 . . 2 2 2 2 2 2 2 2 Hottest 233 | 60 60 58 58 58 50 . . 81 136 194 185 201 233 162 162 Shots Fired 793 | 58 52 36 57 30 12 . . 25 24 188 35 80 137 41 18 Gun 622 | 58 48 27 50 26 12 . . 25 24 159 16 40 78 41 18 Cannon 147 | . . . . . . . . . . 29 19 40 59 . . Launcher 24 | . 4 9 7 4 . . . . . . . . . . . Special . | . . . . . . . . . . . . . . . . Kinetic 230 | 29 30 27 50 26 12 . . 20 . 36 . . . . . Thermal 512 | 27 18 . . . . . . 5 12 139 35 80 137 41 18 Explosive 24 | . 4 9 7 4 . . . . . . . . . . . Electromagnetic 27 | 2 . . . . . . . . 12 13 . . . . . Robot Hit Streak 28 | 10 5 4 8 9 4 . . 17 19 28 14 28 15 8 2 Robot Miss Streak 6 | 3 3 4 2 6 1 . . 1 2 3 2 2 3 2 6 Penetration Max . | . . . . . . . . . . . . . . . . Secondary Targets 5 | . . . . . . . . . 1 1 . . 3 . . Max Gunslinging Chain 1 | . . . . . . . . . 1 1 . . 1 . . Shots Hit Robots 549 | 36 26 19 35 19 7 . . 24 14 148 26 66 94 30 5 Core Hits 223 | 10 8 10 14 23 5 . . 11 8 46 12 25 37 12 2 Critical Kills 5 | . . . 1 . . . . . . . . 2 2 . . Critical Parts Destroyed 1 | . . . . . . . . . . 1 . . . . . Critical Strikes 33 | . . . 1 . . . . . 2 18 . 5 3 4 . Burn 25 | . . . . . . . . . 1 16 . 3 1 4 . Meltdown 4 | . . . . . . . . . . . . 2 2 . . Destroy 2 | . . . 1 . . . . . . 1 . . . . . Corrupt 2 | . . . . . . . . . 1 1 . . . . . Melee Attacks . | . . . . . . . . . . . . . . . . Impact . | . . . . . . . . . . . . . . . . Slashing . | . . . . . . . . . . . . . . . . Piercing . | . . . . . . . . . . . . . . . . Sneak Attacks . | . . . . . . . . . . . . . . . . Combat Hostiles . | . . . . . . . . . . . . . . . . Follow-up Attacks . | . . . . . . . . . . . . . . . . Damage Inflicted 15873 | 355 387 504 700 705 124 . . 543 290 4449 1040 2633 3277 748 118 Guns 9829 | 355 221 216 564 327 124 . . 543 290 3380 428 1130 1385 748 118 Cannons 4828 | . . . . . . . . . . 892 559 1485 1892 . . Explosions 1137 | . 166 285 131 378 . . . . . 177 . . . . . Melee . | . . . . . . . . . . . . . . . . Ramming 79 | . . 3 5 . . . . . . . 53 18 . . . Kinetic 2524 | 144 100 216 564 327 124 . . 426 . 623 . . . . . Thermal 11999 | 199 121 . . . . . . 117 135 3682 987 2615 3277 748 118 Explosive 960 | . 166 285 131 378 . . . . . . . . . . . Electromagnetic 311 | 12 . . . . . . . . 155 144 . . . . . Impact . | . . . . . . . . . . . . . . . . Slashing . | . . . . . . . . . . . . . . . . Piercing . | . . . . . . . . . . . . . . . . Highest Corruption 4 | . . . . . 1 1 1 1 . . . . 4 4 4 Average Corruption 2 | . . . . . 1 1 1 1 . . . . 3 4 4 Corruption Purged . | . . . . . . . . . . . . . . . . Corruption Blocked . | . . . . . . . . . . . . . . . . Effects 16 | . . . . . . 4 . 2 . . . . 3 4 3 Message Errors 2 | . . . . . . . . . . . . . 1 1 . Matter Fused 5 | . . . . . . . . 1 . . . . 1 1 2 Energy Discharges 1 | . . . . . . . . . . . . . . . 1 Parts Rejected 1 | . . . . . . . . . . . . . . 1 . Parts Fused 1 | . . . . . . 1 . . . . . . . . . Data Loss (minor) 2 | . . . . . . 1 . 1 . . . . . . . Data Loss (major) 1 | . . . . . . 1 . . . . . . . . . Alerts 2 | . . . . . . 1 . . . . . . . 1 . Weapon Failures 1 | . . . . . . . . . . . . . 1 . . Overload Shots . | . . . . . . . . . . . . . . . . Overflow Damage 204 | . 2 16 . 72 . . . . . 35 39 12 28 . . Projectiles 91 | . . . . . . . . . . 35 16 12 28 . . Explosions 90 | . 2 16 . 72 . . . . . . . . . . . Melee 23 | . . . . . . . . . . . 23 . . . . Knockbacks 1 | . . . . . . . . . . . 1 . . . . Impact 1 | . . . . . . . . . . . 1 . . . . Kinetic . | . . . . . . . . . . . . . . . . Secondary . | . . . . . . . . . . . . . . . . Self-Inflicted Damage 246 | . 40 46 2 158 . . . . . . . . . . . Shots 6 | . 1 2 . 3 . . . . . . . . . . . Rammed 3 | . . 1 1 . . . . . . . 1 . . . . Targets Rammed 4 | . . 1 1 . . . . . . . 1 1 . . . Kicked 1 | . . . . . . . . . . . . 1 . . . Crushed . | . . . . . . . . . . . . . . . . Highest Temperature 388 | 60 146 74 40 75 4 . . 14 288 388 192 163 356 237 180 Average Temperature 78 | 26 59 27 11 33 2 . . 4 100 113 64 62 114 90 76 Received Heat Transfer 2791 | . 102 63 171 210 . . . 324 . 510 54 591 616 72 78 Effects 9 | . . . . . . . . . 1 4 . . 4 . . Energy Bleed 1 | . . . . . . . . . 1 . . . . . . Interference 6 | . . . . . . . . . . 2 . . 4 . . Matter Decay 2 | . . . . . . . . . . 2 . . . . . Siege Activations . | . . . . . . . . . . . . . . . . Robots Corrupted . | . . . . . . . . . . . . . . . . Combat Hostiles . | . . . . . . . . . . . . . . . . Parts Fried . | . . . . . . . . . . . . . . . . Impact Corruptions 1 | . . . . . . . . . . . 1 . . . . Robots Melted 9 | . . . . . . . . . . . 1 2 4 2 . Combat Hostiles 9 | . . . . . . . . . . . 1 2 4 2 . Parts Melted 45 | . . . . . . . . . . 11 3 12 12 7 . Heat Transferred 16169 | 450 275 . . . . . . 185 296 5787 999 2886 3663 1443 185 Parts Sabotaged . | . . . . . . . . . . . . . . . . Parts Stolen . | . . . . . . . . . . . . . . . . Parts Stripped . | . . . . . . . . . . . . . . . . Power Chain Reactions 1 | . . . . . . . . . . 1 . . . . . Missiles Intercepted . | . . . . . . . . . . . . . . . . Alert | -11 -10 -9 -8 -7 -6 -6 -6 -6 -5 -5 -5 -5 -5 -5 -5 ------- Run | Jun Mat Mat Mat Fac Fac Was Fac DSF Fac Gar Fac Ext Cet Arc Hub Peak Influence 867 | 40 168 233 298 224 91 . . 130 91 867 667 407 346 289 149 Initial 455 | . 26 70 40 49 53 . . . 54 56 455 326 37 129 100 Average 203 | 19 124 98 151 105 51 . . 79 59 487 571 219 166 242 123 Maximum Alert Level 3 | . . 1 1 1 . . . . . 3 2 2 1 1 . Low Security (%) 65 | 100 100 96 82 75 100 100 100 100 100 19 . 49 67 29 100 Level 1 18 | . . 3 17 24 . . . . . 16 . 44 32 70 . Level 2 12 | . . . . . . . . . . 45 100 6 . . . Level 3 2 | . . . . . . . . . . 18 . . . . . Level 4 . | . . . . . . . . . . . . . . . . Level 5 . | . . . . . . . . . . . . . . . . High Security . | . . . . . . . . . . . . . . . . Max Security . | . . . . . . . . . . . . . . . . Sterilizations 1 | . . . . . . . . 1 . . . . . . . Squads Dispatched 20 | . . 2 4 2 1 . . 2 2 . 3 1 1 . 2 Investigation 6 | . . . 3 . . . . . 1 . 1 . 1 . . Extermination 1 | . . . . . 1 . . . . . . . . . . Reinforcement 11 | . . 2 1 2 . . . 2 1 . . 1 . . 2 Assault 1 | . . . . . . . . . . . 1 . . . . Garrison 1 | . . . . . . . . . . . 1 . . . . Intercept . | . . . . . . . . . . . . . . . . Searches Triggered . | . . . . . . . . . . . . . . . . Construction Impeded 1 | . . . . . . . . . . . . 1 . . . Haulers Reinforced . | . . . . . . . . . . . . . . . . Active Scanning Responses . | . . . . . . . . . . . . . . . . Cargo Convoy Interrupts . | . . . . . . . . . . . . . . . . Stealth | -11 -10 -9 -8 -7 -6 -6 -6 -6 -5 -5 -5 -5 -5 -5 -5 --------- Run | Jun Mat Mat Mat Fac Fac Was Fac DSF Fac Gar Fac Ext Cet Arc Hub Distress Signals 11 | . 1 . 1 . . . . . 2 1 1 1 1 . 3 Communications Jammed . | . . . . . . . . . . . . . . . . Distress Signals . | . . . . . . . . . . . . . . . . Times Spotted 169 | . 6 8 8 16 2 . . 25 9 34 8 14 26 7 6 Peak Tracking Total 7 | . 3 2 4 6 2 . . 7 7 4 5 6 6 1 7 Tactical Retreats 15 | . . . . 2 . . . 6 2 5 . . . . . Traps | -11 -10 -9 -8 -7 -6 -6 -6 -6 -5 -5 -5 -5 -5 -5 -5 ------- Run | Jun Mat Mat Mat Fac Fac Was Fac DSF Fac Gar Fac Ext Cet Arc Hub Traps Triggered 8 | . . . . . 1 . . 1 . 1 1 4 . . . Indirectly . | . . . . . . . . . . . . . . . . Trap Hack Attempts . | . . . . . . . . . . . . . . . . Triggered . | . . . . . . . . . . . . . . . . Disarmed . | . . . . . . . . . . . . . . . . Reprogrammed . | . . . . . . . . . . . . . . . . Reused . | . . . . . . . . . . . . . . . . Traps Extracted . | . . . . . . . . . . . . . . . . Installed . | . . . . . . . . . . . . . . . . Triggered . | . . . . . . . . . . . . . . . . Machines | -11 -10 -9 -8 -7 -6 -6 -6 -6 -5 -5 -5 -5 -5 -5 -5 ---------- Run | Jun Mat Mat Mat Fac Fac Was Fac DSF Fac Gar Fac Ext Cet Arc Hub Machines Disabled 27 | . . 3 1 2 . . . . 1 4 . 1 11 2 2 Max in Single Turn 2 | . . 2 1 1 . . . . 1 1 . 1 2 1 1 Garrison Relay 2 | . . . . . . . . . . 2 . . . . . Machines Repaired . | . . . . . . . . . . . . . . . . Machines Sabotaged . | . . . . . . . . . . . . . . . . Overloaded Fab Kills . | . . . . . . . . . . . . . . . . Hacking | -11 -10 -9 -8 -7 -6 -6 -6 -6 -5 -5 -5 -5 -5 -5 -5 --------- Run | Jun Mat Mat Mat Fac Fac Was Fac DSF Fac Gar Fac Ext Cet Arc Hub Machines Accessed 31 | . 5 2 5 3 2 . 1 . 3 1 2 5 1 1 . Terminals 24 | . 4 2 5 2 . . 1 . 2 1 1 5 1 . . Fabricators . | . . . . . . . . . . . . . . . . Repair Stations 1 | . . . . 1 . . . . . . . . . . . Recycling Units 3 | . 1 . . . 2 . . . . . . . . . . Scanalyzers . | . . . . . . . . . . . . . . . . Garrison Access 2 | . . . . . . . . . 1 . 1 . . . . Total Hacks 100 | . 13 6 21 9 5 . 2 . 5 1 3 7 3 25 . Successful 61 | . 8 3 10 5 1 . 1 . 1 1 2 4 . 25 . Failed 39 | . 5 3 11 4 4 . 1 . 4 . 1 3 3 . . Catastrophic 6 | . 1 . 2 . . . . . 2 . . . 1 . . Database Lockouts . | . . . . . . . . . . . . . . . . Manual 52 | . 12 6 21 5 1 . . . 3 . . 4 . . . Terminals 62 | . 12 6 21 5 . . 2 . 3 1 2 7 3 . . Fabricators . | . . . . . . . . . . . . . . . . Repair Stations 4 | . . . . 4 . . . . . . . . . . . Recycling Units 6 | . 1 . . . 5 . . . . . . . . . . Scanalyzers . | . . . . . . . . . . . . . . . . Garrison Access 3 | . . . . . . . . . 2 . 1 . . . . Terminal Hacks 39 | . 3 1 4 1 . . 1 . . 1 1 2 . 25 . Record 25 | . . . . . . . . . . . . . . 25 . Open Door 3 | . . . . . . . . . . 1 . 2 . . . Open DSF 2 | . . . . . . . 1 . . . 1 . . . . Level Access Points 1 | . . . 1 . . . . . . . . . . . . Terminal Index 4 | . 2 1 1 . . . . . . . . . . . . Recall Reinforcements 1 | . . . . 1 . . . . . . . . . . . Zone Layout 3 | . 1 . 2 . . . . . . . . . . . . Fabricator Hacks . | . . . . . . . . . . . . . . . . Repair Station Hacks 2 | . . . . 2 . . . . . . . . . . . Scan Component 1 | . . . . 1 . . . . . . . . . . . Repair 1 | . . . . 1 . . . . . . . . . . . Recycling Unit Hacks 2 | . 1 . . . 1 . . . . . . . . . . Retrieve Components 2 | . 1 . . . 1 . . . . . . . . . . Scanalyzer . | . . . . . . . . . . . . . . . . Garrison Access Hacks 2 | . . . . . . . . . 1 . 1 . . . . Unlock Access 1 | . . . . . . . . . 1 . . . . . . Coupler Status 1 | . . . . . . . . . . . 1 . . . . Unauthorized Hacks 16 | . 4 2 6 2 . . . . . . . 2 . . . Terminals 16 | . 4 2 6 2 . . . . . . . 2 . . . Assimilate 1 | . . . 1 . . . . . . . . . . . . Botnet 15 | . 4 2 5 2 . . . . . . . 2 . . . Fabricators . | . . . . . . . . . . . . . . . . Repair Stations . | . . . . . . . . . . . . . . . . Recycling Units . | . . . . . . . . . . . . . . . . Scanalyzers . | . . . . . . . . . . . . . . . . Garrison Access . | . . . . . . . . . . . . . . . . Data Cores Recovered . | . . . . . . . . . . . . . . . . Used . | . . . . . . . . . . . . . . . . Hacking Detections 22 | . 3 1 5 3 2 . . . 3 1 1 2 1 . . Full Trace Events 5 | . . . 3 . . . . . 1 . . . 1 . . Feedback Events . | . . . . . . . . . . . . . . . . Feedback Blocked . | . . . . . . . . . . . . . . . . Robot Schematics Acquired . | . . . . . . . . . . . . . . . . Robots Built . | . . . . . . . . . . . . . . . . Authchips . | . . . . . . . . . . . . . . . . Time . | . . . . . . . . . . . . . . . . Total Robot Build Rating . | . . . . . . . . . . . . . . . . Part Schematics Acquired . | . . . . . . . . . . . . . . . . Parts Built . | . . . . . . . . . . . . . . . . Authchips . | . . . . . . . . . . . . . . . . Time . | . . . . . . . . . . . . . . . . Total Part Build Rating . | . . . . . . . . . . . . . . . . Parts Repaired 1 | . . . . 1 . . . . . . . . . . . Time 30 | . . . . 30 . . . . . . . . . . . Parts Recycled . | . . . . . . . . . . . . . . . . Recycled Matter . | . . . . . . . . . . . . . . . . Retrieved Matter . | . . . . . . . . . . . . . . . . Retrieved Components 13 | . 10 . . . 3 . . . . . . . . . . Parts Scanalyzed . | . . . . . . . . . . . . . . . . Part Schematics Acquired . | . . . . . . . . . . . . . . . . Parts Damaged . | . . . . . . . . . . . . . . . . Bothacking | -11 -10 -9 -8 -7 -6 -6 -6 -6 -5 -5 -5 -5 -5 -5 -5 ------------ Run | Jun Mat Mat Mat Fac Fac Was Fac DSF Fac Gar Fac Ext Cet Arc Hub Used RIF Installer . | . . . . . . . . . . . . . . . . Robots Hacked . | . . . . . . . . . . . . . . . . Non-combat . | . . . . . . . . . . . . . . . . Combat . | . . . . . . . . . . . . . . . . Robot Hacks Applied . | . . . . . . . . . . . . . . . . Relay Couplers Released 8 | . . . . . . . . . . 8 . . . . . Machine Destruction 8 | . . . . . . . . . . 8 . . . . . Fabnet Peak Effective % . | . . . . . . . . . . . . . . . . Robots Rewired 12 | . . . . . . . . . . 5 . 7 . . . Allies Hacked . | . . . . . . . . . . . . . . . . Hacks Repelled . | . . . . . . . . . . . . . . . . Allies | -11 -10 -9 -8 -7 -6 -6 -6 -6 -5 -5 -5 -5 -5 -5 -5 -------- Run | Jun Mat Mat Mat Fac Fac Was Fac DSF Fac Gar Fac Ext Cet Arc Hub Total Allies 16 | . . . 1 . . . . . . 5 . 10 . . . Largest Group 10 | . . . 1 1 . . . . . 4 . 10 10 . . Highest-Rated Group 265 | . . . 10 10 . . . . . 148 . 265 265 . . Highest-Rated Ally 148 | . . . 10 10 . . . . . 148 . 39 39 . . Total Orders 1 | . . . 1 . . . . . . . . . . . . FOLLOW 1 | . . . 1 . . . . . . . . . . . . Ally Attacks 96 | . . . . . . . . . . 48 . 21 27 . . Total Damage 2409 | . . . . . . . . . . 1287 . 537 585 . . Kills 16 | . . . . . . . . . . 11 . 2 3 . . Allies Corrupted . | . . . . . . . . . . . . . . . . Allies Melted 1 | . . . . . . . . . . 1 . . . . . Intel | -11 -10 -9 -8 -7 -6 -6 -6 -6 -5 -5 -5 -5 -5 -5 -5 ------- Run | Jun Mat Mat Mat Fac Fac Was Fac DSF Fac Gar Fac Ext Cet Arc Hub Robot Analysis Total . | . . . . . . . . . . . . . . . . Derelict Logs Recovered . | . . . . . . . . . . . . . . . . Drone Launches . | . . . . . . . . . . . . . . . . Drone Recoveries . | . . . . . . . . . . . . . . . . Exploration | -11 -10 -9 -8 -7 -6 -6 -6 -6 -5 -5 -5 -5 -5 -5 -5 ------------- Run | Jun Mat Mat Mat Fac Fac Was Fac DSF Fac Gar Fac Ext Cet Arc Hub Turns Passed 8590 | 168 396 522 519 739 470 541 8 236 547 1360 362 1571 765 206 180 Spaces Moved 4677 | 84 309 248 354 440 363 326 5 122 385 636 206 727 301 85 86 Core 22 | 11 5 . . 6 . . . . . . . . . . . Treads 539 | . . . . . . . . . . 240 206 93 . . . Legs 3037 | . . . . 334 363 326 5 122 385 396 . 634 301 85 86 Wheels 82 | 73 9 . . . . . . . . . . . . . . Hover 997 | . 295 248 354 100 . . . . . . . . . . . Flight . | . . . . . . . . . . . . . . . . Fastest Speed 50 | 50 56 176 108 100 120 120 190 117 120 120 152 152 187 187 187 Average Speed 146 | 87 95 176 109 123 120 160 190 136 120 148 152 186 188 187 187 Slowest Speed 260 | 100 240 176 176 190 120 190 190 190 190 250 152 250 260 187 190 Overloaded Moves . | . . . . . . . . . . . . . . . . Propulsion Burnouts . | . . . . . . . . . . . . . . . . Robots Hopped . | . . . . . . . . . . . . . . . . Cave-ins Triggered . | . . . . . . . . . . . . . . . . Exploration Rate (%) 40 | 4 29 32 26 10 8 90 . 93 10 61 7 72 79 83 10 Regions Visited 15 Branch Regions 4 Pre-discovered Areas . | . . . . . . . . . . . . . . . . Known Exits Taken 3 | . . . 1 . . . 1 . 1 . . . . . . Unknown Exits Taken 8 | 1 1 1 . 1 . . . . . . 1 1 1 1 . Scrap Searched . | . . . . . . . . . . . . . . . . Spaces Dug 55 | . . 8 47 . . . . . . . . . . . . Terrain Destroyed 239 | . 33 60 84 44 . . . . . 5 7 2 4 . . Melee . | . . . . . . . . . . . . . . . . Projectile 16 | . . . 1 . . . . . . 2 7 2 4 . . AOE 223 | . 33 60 83 44 . . . . . 3 . . . . . Terrain Rammed . | . . . . . . . . . . . . . . . . Walls Destroyed . | . . . . . . . . . . . . . . . . Machines Disabled . | . . . . . . . . . . . . . . . . Actions | -11 -10 -9 -8 -7 -6 -6 -6 -6 -5 -5 -5 -5 -5 -5 -5 --------- Run | Jun Mat Mat Mat Fac Fac Was Fac DSF Fac Gar Fac Ext Cet Arc Hub Total 5845 | 122 361 310 448 613 390 349 4 167 444 896 231 886 418 110 96 Wait 274 | . . 14 41 129 6 . . 6 16 47 . 9 6 . . Move 4661 | 83 308 247 353 439 363 325 4 121 384 633 205 726 300 84 86 Hop . | . . . . . . . . . . . . . . . . Pick Up 91 | 1 10 7 1 9 4 7 . 1 8 17 3 14 7 2 . Fast Attach 58 | 8 5 2 1 8 3 . . 2 3 16 . 3 7 . . Attach 59 | . 1 3 5 3 2 . . 4 9 5 2 12 11 1 1 Detach 19 | 1 3 1 . 1 . . . . 4 7 . . 2 . . Swap 50 | . 2 1 2 3 2 4 . 7 6 12 . 6 4 1 . Drop 62 | . 2 6 . 3 4 11 . 6 2 10 1 5 12 . . Fire 456 | 29 30 28 44 18 6 . . 20 12 110 19 40 69 22 9 Melee . | . . . . . . . . . . . . . . . . Ram 2 | . . 1 1 . . . . . . . . . . . . Kick 1 | . . . . . . . . . . . . 1 . . . Crush 1 | . . . . . . . . . . . 1 . . . . Escape Stasis 20 | . . . . . . . . . . . . 20 . . . Rewire 91 | . . . . . . 2 . . . 39 . 50 . . . Trap . | . . . . . . . . . . . . . . . . Miscellaneous . | . . . . . . . . . . . . . . . . Route ------- -11/Junkyard -10/Materials -9/Materials -8/Materials (discovered 3 exits: *Fac x3) -7/Factory -6/Factory -6/Waste -6/Factory -6/DSF -5/Factory -5/Garrison (discovered 2 exits: *Fac x2) -5/Factory -5/Extension (discovered 2 exits: [*Fac] / *Cet) -5/Cetus -5/Archives (discovered 3 exits: [*Fac] / [*Hub x2]) -5/Hub_04(d) History --------- Turn | Location | Event 10 | -11/Junkyard | Discovered new exit (range 16) 169 | -11/Junkyard | Entered Materials 282 | -10/Materials | Discovered new exit (range 16) 320 | -10/Materials | Build established: Mutant 430 | -10/Materials | Lost 3 parts (1p1n1u) 565 | -10/Materials | Entered another Materials area 565 | -9/Materials | Evolved 2 slots: Utility x2 1028 | -9/Materials | Discovered new exit (range 16) 1087 | -9/Materials | Entered another Materials area 1087 | -8/Materials | Evolved 2 slots: Propulsion x2 1247 | -8/Materials | Identified exit to Factory 1436 | -8/Materials | Lost 4 parts (1p2n1w) 1606 | -8/Materials | Entered Factory 1606 | -7/Factory | Accompanied by 1 ally 1606 | -7/Factory | Evolved 2 slots: Utility x2 1851 | -7/Factory | Destroyed 7 combat bots 1852 | -7/Factory | Lost 7 parts (1p4n1u1w) 2104 | -7/Factory | Repaired Enh. Autogun 2126 | -7/Factory | Build established: Scavenger-Mutant 2328 | -7/Factory | Discovered new exit (range 15) 2345 | -7/Factory | Entered another Factory area 2345 | -6/Factory | Evolved 2 slots: Utility x2 2815 | -6/Factory | Sucked down chute 2815 | -6/Factory | Entered Waste 2815 | -6/Waste | The area was eerily silent 3118 | -6/Waste | Discovered new exit (range 13) 3356 | -6/Waste | Entered Factory 3364 | -6/Factory | Identified exit to DSF 3364 | -6/Factory | Entered DSF 3408 | -6/DSF | Additional patrols routed to DSF 3536 | -6/DSF | Sterilization system engaged 3541 | -6/DSF | Lost 5 parts (2n2u1w) 3556 | -6/DSF | Ambient heat levels rising (+10) 3571 | -6/DSF | Ambient heat levels rising (+10) 3578 | -6/DSF | Discovered new exit (range 14) 3586 | -6/DSF | Ambient heat levels rising (+10) 3591 | -6/DSF | Lost 4 parts (1p1n2u) 3600 | -6/DSF | Entered Factory 3600 | -5/Factory | Evolved 2 slots: Utility x2 3824 | -5/Factory | Build established: Mutant 4146 | -5/Factory | Identified exit to Garrison 4147 | -5/Factory | Entered Garrison 4168 | -5/Garrison | Spotted B-75 Beast 4231 | -5/Garrison | Destroyed B-75 Beast 4255 | -5/Garrison | Lost 3 parts (1n1u1w) 4285 | -5/Garrison | Rewired B-90 Cyclops 4500 | -5/Garrison | Triggered checkpoint 4522 | -5/Garrison | Garrison Relay disabled 4616 | -5/Garrison | Triggered checkpoint 4637 | -5/Garrison | Triggered checkpoint 4700 | -5/Garrison | Build established: Scavenger-Mutant 4742 | -5/Garrison | Triggered checkpoint 4805 | -5/Garrison | Discovered new exit (range 13) 4836 | -5/Garrison | Spotted B-75 Beast 4914 | -5/Garrison | Lost 6 parts (1n4u1w) 4926 | -5/Garrison | Destroyed B-75 Beast 5124 | -5/Garrison | Attempted to access garrison exit controls, blocked by remote lockdown 5259 | -5/Garrison | Garrison Relay disabled 5288 | -5/Garrison | Triggered checkpoint 5376 | -5/Garrison | Triggered checkpoint 5489 | -5/Garrison | Discovered new exit (range 12) 5507 | -5/Garrison | Entered Factory 5794 | -5/Factory | Garrison activated, responded to threat 5807 | -5/Factory | First assault squad dispatched 5854 | -5/Factory | Discovered new exit (range 10) 5869 | -5/Factory | Entered Extension 5982 | -5/Extension | Spotted B-75 Beast 5991 | -5/Extension | Destroyed B-75 Beast 6009 | -5/Extension | Spotted B-75 Beast 6043 | -5/Extension | Destroyed B-75 Beast 6051 | -5/Extension | Core integrity fell below 50% 6101 | -5/Extension | Lost 8 parts (2p2n2u2w) 6148 | -5/Extension | Lost 4 parts (1n3u) 6376 | -5/Extension | Rescued a captive Derelict 6485 | -5/Extension | Rescued a captive Derelict 6486 | -5/Extension | Rescued a captive Derelict 7013 | -5/Extension | Build established: Commander-Mutant 7402 | -5/Extension | Discovered new exit (range 18) 7406 | -5/Extension | Discovered new exit (range 16) 7440 | -5/Extension | Entered Cetus 7440 | -5/Cetus | Accompanied by 10 allies 7465 | -5/Cetus | Spotted Cetus Guard 7465 | -5/Cetus | Spotted Cetus Guard 7467 | -5/Cetus | Spotted Cetus Guard 7467 | -5/Cetus | Spotted Cetus Guard 7475 | -5/Cetus | Allies destroyed Cetus Guard 7483 | -5/Cetus | Allies destroyed Cetus Guard 7493 | -5/Cetus | Destroyed Cetus Guard 7507 | -5/Cetus | Destroyed Cetus Guard 7770 | -5/Cetus | Build established: Scavenger-Mutant 7853 | -5/Cetus | Destroyed 10 combat bots 7854 | -5/Cetus | Lost 5 parts (1p1n1u2w) 7912 | -5/Cetus | Cetus Manufacturing Module disabled 8083 | -5/Cetus | Core integrity fell below 20% 8154 | -5/Cetus | Lost 7 parts (5u2w) 8173 | -5/Cetus | Discovered new exit (range 18) 8205 | -5/Cetus | Entered Archives 8317 | -5/Archives | Unable to access archive contents 8319 | -5/Archives | Discovered new exit (range 18) 8338 | -5/Archives | Unable to access archive contents 8340 | -5/Archives | Discovered new exit (range 17) 8357 | -5/Archives | Unable to access archive contents 8359 | -5/Archives | Discovered new exit (range 18) 8411 | -5/Archives | Entered Hub_04(d) 8591 | -5/Hub_04(d) | Destroyed by H-66 Slayer with Heavy Assault Rifle Last Messages --------------- reinforcements to area. 08582_ Penetrated by Slug. 08582_ Knocked back. 08583_ Acquired 6 matter. 08583_ Penetrated by Slug. 08586_ Imp. VSS Leg destroyed. 08586_ Critical hit (Blast). 08586_ Slug penetrates Wall. 08587_ Penetrated by Slug. 08587_ Flexi-carbon Leg destroyed. 08587_ Slug penetrates Wall. 08587_ Penetrated by Slug. 08589_ Wave Gun destroyed. 08589_ Penetrated by Slug. 08589_ Med. Reflective Plating destroyed. 08590_ W-25 Informer sends out distress signal. 08590_ Lyr. Medium Armor Plating destroyed. 08590_ Penetrated by Slug. 08590_ Visual Processing Unit destroyed. 08591_ Penetrated by Slug. Map ----- +----------------------------------------------------+ | ?????????????????????????????????????? | | ?????????????????????????????????????? | | ?????????????????????????????????????? | | ?????????????????????????????????????? | | ?????????????????????????????????????? | | ?????????????????????????????????????? | | ?????????????????????????????????????? | | ?????????????????????????????????????? | | ?????????????????????????????????????? | | ?????????????????????????????????????? | | ?????????????????????????????????????? | | ?????????????????????????????????????? | | ??????????####### ??????????????????? | | ?????????? !! ??????????????????? | | ????????? !! ???????????????????? | | ?????????" ! ???????????????????? | | ???????? """ ????????????????????? | | ?????????G ???????????????????? | | ?????????"""h ?################## | | ?????????" =! # # | | ????????? =[H# """ """ """ # | | ???????? = ; # | | ??????# ; """ """ """ # | | ?????? ; # | | ?????? ; """ """ """ # | | ??????????# #x @% # | | ??????????# ##?##+??###########+###??? | | ??#########+#??# ? #?????# #????? | | ??# #??? """" #?????# #????? | | ??# =#??? """" #?????# #????? | | ??# #???? """" ????###+####?? | | ??#"""" #???? """" ????# #?? | | ??#""" #????? ?????# """" #?? | | ??#"""" #????? ?##### """" #?? | | ??#"""" #?????? ??+ + """" #?? | | ??# #?????? ??# # """ #?? | | ?######+############+#### # #?? | | ?# #####+##?? | | ?# ##### #??? | | ?# #??? | | ?##################################??? | | | | | | | | | | | | | | | | | | | +----------------------------------------------------+ Best States ------------- Heat Dissipation 90 Coolant Potential 100 Energy Generation 25 Energy Capacity 700 Matter Stores 300 Matter Capacity 300 Sight Range 18 Robot Scan Range 16 Terrain Scan Range 16 Terrain Scan Density 10 ECM Strength 1 EM Shielding 3 Armor Coverage 600 Resistance: TH 15 Weapon Cycling 20 Phase Shifting 5 Evasion (%) 60 Targeting Accuracy 22 Target Analysis 8 Recoil Reduction 4 Item Schematics ----------------- None Robot Schematics ------------------ None Fabricated ------------ Nothing Alien Tech Used ----------------- None Achievements -------------- Party Time Challenges ------------ None Game ------ Seed WHEN THE IMPOSTER IS SUS Manual? 1 Play Time 01:13:51 Cumulative 52.2 hours Start 2024.01.02 @ 20:43:07 End 2024.01.02 @ 21:56:09 Sessions 1 Manual Loads 0 Difficulty Rogue Special Mode None Game No. 82 Rogue 56 Adventurer 18 Explorer 8 Win Type - Total 1 Types 1/0/0/0/0/0/0/0/0 Lore% 28 Gallery% 50 Achievement% 39 Wizard Run 0 Options --------- ASCII 0 Keyboard 1 Movement Numpad Keybinds 0 Fullscreen 1 Font 20/Cog Map View 66x50 Tactical HUD 1 Map Filters NONE Filters NONE Steam 1 RUN: c3b6b256-c209-45de-855c-0d0541aa9b29